[Event "Titled Tuesday Blitz January 11 2022"]
[White "Babazada, Khazar"]
[Black "Hess, Robert"]
[WhiteFideId "13413554"]
[BlackFideId "2022036"]
[WhiteElo "2418"]
[BlackElo "2557"]
[Result "1-0"]
[Round "10"]
[TimeControl "180+1"]
[Date "2022.01.11"]
[WhiteClock "0:01:05"]
[BlackClock "0:00:02"]

1. e4 {[%clk 0:03:00]}  g6 {[%clk 0:03:00]} 2. Nc3 {[%clk 0:02:58]}  Bg7 {[%clk 0:03:01]} 3. d4 {[%clk 0:02:58]}  a6 {[%clk 0:03:01]} 4. Nf3 {[%clk 0:02:59]}  b5 {[%clk 0:03:01]} 5. Bd3 {[%clk 0:02:59]}  Bb7 {[%clk 0:03:01]} 6. O-O {[%clk 0:02:59]}  d6 {[%clk 0:03:02]} 7. Qe2 {[%clk 0:02:59]}  Nd7 {[%clk 0:02:57]} 8. h3 {[%clk 0:02:59]}  c5 {[%clk 0:02:56]} 9. dxc5 {[%clk 0:02:57]}  Nxc5 {[%clk 0:02:57]} 10. Re1 {[%clk 0:02:41]}  Qc7 {[%clk 0:02:47]} 11. Bf4 {[%clk 0:02:39]}  e5 {[%clk 0:02:37]} 12. Bd2 {[%clk 0:02:32]}  Nf6 {[%clk 0:02:19]} 13. b4 {[%clk 0:02:32]}  Ne6 {[%clk 0:02:11]} 14. a4 {[%clk 0:02:28]}  bxa4 {[%clk 0:02:06]} 15. Rxa4 {[%clk 0:02:26]}  O-O {[%clk 0:01:42]} 16. Rea1 {[%clk 0:02:20]}  Nf4 {[%clk 0:01:07]} 17. Bxf4 {[%clk 0:02:03]}  exf4 {[%clk 0:01:08]} 18. R1a3 {[%clk 0:01:56]}  Rfe8 {[%clk 0:01:03]} 19. Qd2 {[%clk 0:01:55]}  Nxe4 {[%clk 0:00:52]} 20. Nxe4 {[%clk 0:01:48]}  Bxe4 {[%clk 0:00:53]} 21. Bxe4 {[%clk 0:01:39]}  Rxe4 {[%clk 0:00:54]} 22. Rxa6 {[%clk 0:01:19]}  Rxa6 {[%clk 0:00:51]} 23. Rxa6 {[%clk 0:01:20]}  Bc3 {[%clk 0:00:31]} 24. Qd3 {[%clk 0:01:15]}  Rxb4 {[%clk 0:00:27]} 25. Rxd6 {[%clk 0:01:15]}  Qc5 {[%clk 0:00:13]} 26. Kh2 {[%clk 0:01:09]}  Kg7 {[%clk 0:00:08]} 27. Rd7 {[%clk 0:01:06]}  Bf6 {[%clk 0:00:05]} 28. Qe2 {[%clk 0:01:05]}  Rc4 {[%clk 0:00:05]} 29. Qe6 {[%clk 0:01:04]}  Qxf2 {[%clk 0:00:02]} 30. Qxf7+ {[%clk 0:01:04]}  Kh6 {[%clk 0:00:02]} 31. Qxh7# {[%clk 0:01:05]} 1-0


[Site "https://www.chess.com"]

[Event "Titled Tuesday Blitz January 11 2022"]
[White "Brunner, Nicolas"]
[Black "Siddharth, Jagadeesh"]
[WhiteFideId "620246"]
[BlackFideId "5818320"]
[WhiteElo "2372"]
[BlackElo "2127"]
[Result "1/2-1/2"]
[Round "10"]
[TimeControl "180+1"]
[Date "2022.01.11"]
[WhiteClock "0:00:19"]
[BlackClock "0:01:02"]

1. d4 {[%clk 0:03:00]}  d5 {[%clk 0:02:59]} 2. c4 {[%clk 0:03:00]}  dxc4 {[%clk 0:02:59]} 3. e4 {[%clk 0:03:00]}  b5 {[%clk 0:02:59]} 4. a4 {[%clk 0:02:55]}  c6 {[%clk 0:02:59]} 5. axb5 {[%clk 0:02:52]}  cxb5 {[%clk 0:03:00]} 6. Nc3 {[%clk 0:02:53]}  Qb6 {[%clk 0:03:00]} 7. b3 {[%clk 0:02:46]}  e6 {[%clk 0:02:59]} 8. bxc4 {[%clk 0:02:44]}  Bb4 {[%clk 0:03:00]} 9. Bb2 {[%clk 0:02:31]}  bxc4 {[%clk 0:02:57]} 10. Bxc4 {[%clk 0:02:29]}  Ne7 {[%clk 0:02:46]} 11. Ne2 {[%clk 0:02:28]}  O-O {[%clk 0:02:47]} 12. O-O {[%clk 0:02:27]}  a5 {[%clk 0:02:48]} 13. d5 {[%clk 0:02:11]}  Ba6 {[%clk 0:02:38]} 14. Na4 {[%clk 0:01:49]}  Qb7 {[%clk 0:02:25]} 15. Ba2 {[%clk 0:01:43]}  exd5 {[%clk 0:02:21]} 16. exd5 {[%clk 0:01:38]}  Nd7 {[%clk 0:02:19]} 17. d6 {[%clk 0:01:19]}  Nf5 {[%clk 0:02:15]} 18. Bd5 {[%clk 0:00:55]}  Bxe2 {[%clk 0:02:10]} 19. Bxb7 {[%clk 0:00:53]}  Bxd1 {[%clk 0:02:10]} 20. Rfxd1 {[%clk 0:00:41]}  Rad8 {[%clk 0:02:07]} 21. Ba3 {[%clk 0:00:35]}  Ne5 {[%clk 0:01:55]} 22. Bxb4 {[%clk 0:00:30]}  axb4 {[%clk 0:01:55]} 23. Rdb1 {[%clk 0:00:29]}  Nxd6 {[%clk 0:01:48]} 24. Rxb4 {[%clk 0:00:29]}  Rb8 {[%clk 0:01:41]} 25. Rab1 {[%clk 0:00:28]}  Nd3 {[%clk 0:01:36]} 26. R4b3 {[%clk 0:00:28]}  Nf4 {[%clk 0:01:23]} 27. Bf3 {[%clk 0:00:25]}  Rbd8 {[%clk 0:01:19]} 28. g3 {[%clk 0:00:24]}  Ne6 {[%clk 0:01:19]} 29. Rd1 {[%clk 0:00:22]}  g6 {[%clk 0:01:16]} 30. Nb2 {[%clk 0:00:20]}  Nf5 {[%clk 0:01:16]} 31. Rxd8 {[%clk 0:00:19]}  Rxd8 {[%clk 0:01:17]} 32. Kg2 {[%clk 0:00:20]}  Rd2 {[%clk 0:01:15]} 33. Nc4 {[%clk 0:00:20]}  Rd7 {[%clk 0:01:12]} 34. Rb2 {[%clk 0:00:20]}  Ned4 {[%clk 0:01:11]} 35. Ne5 {[%clk 0:00:20]}  Re7 {[%clk 0:01:11]} 36. Ng4 {[%clk 0:00:19]}  Kg7 {[%clk 0:01:11]} 37. Bd5 {[%clk 0:00:19]}  h5 {[%clk 0:01:10]} 38. Ne3 {[%clk 0:00:17]}  Nxe3+ {[%clk 0:01:11]} 39. fxe3 {[%clk 0:00:17]}  Rxe3 {[%clk 0:01:12]} 40. Rb7 {[%clk 0:00:18]}  Ne6 {[%clk 0:00:59]} 41. Bxe6 {[%clk 0:00:16]}  Rxe6 {[%clk 0:00:59]} 42. h4 {[%clk 0:00:17]}  Rf6 {[%clk 0:01:00]} 43. Rb5 {[%clk 0:00:16]}  Rf5 {[%clk 0:01:00]} 44. Rb4 {[%clk 0:00:17]}  Kf6 {[%clk 0:01:00]} 45. Rb6+ {[%clk 0:00:17]}  Kg7 {[%clk 0:01:00]} 46. Rb7 {[%clk 0:00:17]}  Kh6 {[%clk 0:01:00]} 47. Rb6 {[%clk 0:00:18]}  Kh7 {[%clk 0:01:00]} 48. Rb7 {[%clk 0:00:18]}  Kg8 {[%clk 0:01:00]} 49. Rb8+ {[%clk 0:00:18]}  Kg7 {[%clk 0:01:00]} 50. Rb7 {[%clk 0:00:19]}  Kf8 {[%clk 0:01:00]} 51. Rb8+ {[%clk 0:00:20]}  Ke7 {[%clk 0:01:00]} 52. Rb7+ {[%clk 0:00:20]}  Ke6 {[%clk 0:01:01]} 53. Rb6+ {[%clk 0:00:21]}  Ke5 {[%clk 0:01:00]} 54. Rb5+ {[%clk 0:00:21]}  Kd6 {[%clk 0:01:00]} 55. Rb7 {[%clk 0:00:21]}  f6 {[%clk 0:00:55]} 56. Rg7 {[%clk 0:00:21]}  g5 {[%clk 0:00:56]} 57. hxg5 {[%clk 0:00:21]}  fxg5 {[%clk 0:00:57]} 58. Rh7 {[%clk 0:00:21]}  g4 {[%clk 0:00:57]} 59. Rh8 {[%clk 0:00:19]}  Ke6 {[%clk 0:00:57]} 60. Rh7 {[%clk 0:00:19]}  Kf6 {[%clk 0:00:57]} 61. Ra7 {[%clk 0:00:19]}  Rb5 {[%clk 0:00:57]} 62. Ra6+ {[%clk 0:00:20]}  Kg5 {[%clk 0:00:57]} 63. Ra8 {[%clk 0:00:20]}  Rb2+ {[%clk 0:00:57]} 64. Kg1 {[%clk 0:00:20]}  Kf5 {[%clk 0:00:57]} 65. Rh8 {[%clk 0:00:19]}  Ke4 {[%clk 0:00:57]} 66. Rxh5 {[%clk 0:00:19]}  Kf3 {[%clk 0:00:57]} 67. Rc5 {[%clk 0:00:18]}  Rb1+ {[%clk 0:00:57]} 68. Kh2 {[%clk 0:00:18]}  Rb2+ {[%clk 0:00:58]} 69. Kg1 {[%clk 0:00:18]}  Kxg3 {[%clk 0:00:54]} 70. Rc1 {[%clk 0:00:18]}  Kh3 {[%clk 0:00:53]} 71. Rd1 {[%clk 0:00:18]}  Rg2+ {[%clk 0:00:52]} 72. Kh1 {[%clk 0:00:18]}  Rg3 {[%clk 0:00:53]} 73. Rc1 {[%clk 0:00:17]}  Rf3 {[%clk 0:00:53]} 74. Rb1 {[%clk 0:00:17]}  Rf2 {[%clk 0:00:53]} 75. Kg1 {[%clk 0:00:18]}  g3 {[%clk 0:00:53]} 76. Ra1 {[%clk 0:00:17]}  Rb2 {[%clk 0:00:53]} 77. Rc1 {[%clk 0:00:17]}  Kg4 {[%clk 0:00:53]} 78. Rd1 {[%clk 0:00:17]}  Kh3 {[%clk 0:00:53]} 79. Rc1 {[%clk 0:00:17]}  Rg2+ {[%clk 0:00:53]} 80. Kh1 {[%clk 0:00:17]}  Rf2 {[%clk 0:00:54]} 81. Kg1 {[%clk 0:00:18]}  Rf8 {[%clk 0:00:54]} 82. Rb1 {[%clk 0:00:18]}  Rh8 {[%clk 0:00:53]} 83. Ra1 {[%clk 0:00:18]}  Kg4 {[%clk 0:00:53]} 84. Ra4+ {[%clk 0:00:18]}  Kh3 {[%clk 0:00:53]} 85. Ra1 {[%clk 0:00:18]}  Rb8 {[%clk 0:00:54]} 86. Rc1 {[%clk 0:00:18]}  Rb2 {[%clk 0:00:54]} 87. Rd1 {[%clk 0:00:18]}  Re2 {[%clk 0:00:54]} 88. Rc1 {[%clk 0:00:18]}  Rb2 {[%clk 0:00:54]} 89. Rd1 {[%clk 0:00:18]}  Rc2 {[%clk 0:00:54]} 90. Rb1 {[%clk 0:00:18]}  Ra2 {[%clk 0:00:54]} 91. Rc1 {[%clk 0:00:19]}  Rf2 {[%clk 0:00:54]} 92. Rb1 {[%clk 0:00:19]}  Rh2 {[%clk 0:00:55]} 93. Ra1 {[%clk 0:00:18]}  Kg4 {[%clk 0:00:55]} 94. Ra4+ {[%clk 0:00:18]}  Kh3 {[%clk 0:00:56]} 95. Ra1 {[%clk 0:00:18]}  Rg2+ {[%clk 0:00:56]} 96. Kh1 {[%clk 0:00:18]}  Rf2 {[%clk 0:00:57]} 97. Kg1 {[%clk 0:00:18]}  Rf4 {[%clk 0:00:57]} 98. Rb1 {[%clk 0:00:18]}  Kg4 {[%clk 0:00:58]} 99. Ra1 {[%clk 0:00:18]}  Re4 {[%clk 0:00:58]} 100. Rb1 {[%clk 0:00:18]}  Re3 {[%clk 0:00:58]} 101. Ra1 {[%clk 0:00:19]}  Kf3 {[%clk 0:00:59]} 102. Rb1 {[%clk 0:00:19]}  g2 {[%clk 0:00:59]} 103. Ra1 {[%clk 0:00:18]}  Kg3 {[%clk 0:01:00]} 104. Rb1 {[%clk 0:00:18]}  Re2 {[%clk 0:01:00]} 105. Rb3+ {[%clk 0:00:18]}  Kf4 {[%clk 0:01:01]} 106. Rb1 {[%clk 0:00:18]}  Ke4 {[%clk 0:01:01]} 107. Ra1 {[%clk 0:00:18]}  Ke3 {[%clk 0:01:02]} 108. Rb1 {[%clk 0:00:18]}  Kd2 {[%clk 0:01:02]} 109. Ra1 {[%clk 0:00:18]}  Re1+ {[%clk 0:01:01]} 110. Rxe1 {[%clk 0:00:18]}  Kxe1 {[%clk 0:01:02]} 111. Kxg2 {[%clk 0:00:19]} 1/2-1/2


[Site "https://www.chess.com"]

[Event "Titled Tuesday Blitz January 11 2022"]
[White "Daneshvar, Bardiya"]
[Black "Narayanan.S.L"]
[WhiteFideId "12576468"]
[BlackFideId "5058422"]
[WhiteElo "2295"]
[BlackElo "2494"]
[Result "1/2-1/2"]
[Round "10"]
[TimeControl "180+1"]
[Date "2022.01.11"]
[WhiteClock "0:00:07"]
[BlackClock "0:00:21"]

1. d4 {[%clk 0:03:00]}  Nf6 {[%clk 0:02:59]} 2. c4 {[%clk 0:03:00]}  g6 {[%clk 0:02:57]} 3. Nc3 {[%clk 0:03:00]}  d5 {[%clk 0:02:57]} 4. Bf4 {[%clk 0:03:00]}  Bg7 {[%clk 0:02:56]} 5. e3 {[%clk 0:03:01]}  c6 {[%clk 0:02:55]} 6. cxd5 {[%clk 0:02:59]}  Nxd5 {[%clk 0:02:55]} 7. Nxd5 {[%clk 0:02:58]}  cxd5 {[%clk 0:02:55]} 8. Nf3 {[%clk 0:02:55]}  Nc6 {[%clk 0:02:55]} 9. Be2 {[%clk 0:02:54]}  O-O {[%clk 0:02:55]} 10. O-O {[%clk 0:02:54]}  Bg4 {[%clk 0:02:55]} 11. h3 {[%clk 0:02:51]}  Bxf3 {[%clk 0:02:55]} 12. Bxf3 {[%clk 0:02:52]}  e6 {[%clk 0:02:55]} 13. Qb3 {[%clk 0:02:49]}  Qd7 {[%clk 0:02:54]} 14. Rfc1 {[%clk 0:02:49]}  Rfc8 {[%clk 0:02:54]} 15. Be2 {[%clk 0:02:47]}  Bf8 {[%clk 0:02:47]} 16. a3 {[%clk 0:02:30]}  a6 {[%clk 0:02:42]} 17. Qb6 {[%clk 0:02:21]}  Be7 {[%clk 0:02:36]} 18. Rc3 {[%clk 0:02:12]}  Bd8 {[%clk 0:02:36]} 19. Qb3 {[%clk 0:02:10]}  Na5 {[%clk 0:02:35]} 20. Qc2 {[%clk 0:02:02]}  Rxc3 {[%clk 0:02:35]} 21. Qxc3 {[%clk 0:02:03]}  Rc8 {[%clk 0:02:35]} 22. Qb4 {[%clk 0:02:03]}  Nc4 {[%clk 0:02:14]} 23. Rc1 {[%clk 0:01:44]}  b5 {[%clk 0:02:14]} 24. Bxc4 {[%clk 0:01:31]}  dxc4 {[%clk 0:01:52]} 25. Qd6 {[%clk 0:01:24]}  Qxd6 {[%clk 0:01:50]} 26. Bxd6 {[%clk 0:01:25]}  f6 {[%clk 0:01:42]} 27. Kf1 {[%clk 0:01:18]}  Kf7 {[%clk 0:01:42]} 28. Ke2 {[%clk 0:01:18]}  Be7 {[%clk 0:01:43]} 29. Bxe7 {[%clk 0:01:16]}  Kxe7 {[%clk 0:01:43]} 30. e4 {[%clk 0:01:03]}  Kd6 {[%clk 0:01:42]} 31. Ke3 {[%clk 0:01:02]}  a5 {[%clk 0:01:41]} 32. f3 {[%clk 0:00:50]}  e5 {[%clk 0:01:39]} 33. dxe5+ {[%clk 0:00:49]}  Kxe5 {[%clk 0:01:34]} 34. f4+ {[%clk 0:00:46]}  Kd6 {[%clk 0:01:29]} 35. Rd1+ {[%clk 0:00:36]}  Kc6 {[%clk 0:01:27]} 36. Rd5 {[%clk 0:00:35]}  b4 {[%clk 0:01:10]} 37. a4 {[%clk 0:00:19]}  f5 {[%clk 0:00:45]} 38. Kd4 {[%clk 0:00:10]}  Kb6 {[%clk 0:00:42]} 39. exf5 {[%clk 0:00:07]}  c3 {[%clk 0:00:37]} 40. bxc3 {[%clk 0:00:07]}  bxc3 {[%clk 0:00:37]} 41. Rb5+ {[%clk 0:00:07]}  Ka6 {[%clk 0:00:37]} 42. Rb1 {[%clk 0:00:07]}  gxf5 {[%clk 0:00:37]} 43. Rc1 {[%clk 0:00:08]}  c2 {[%clk 0:00:38]} 44. Kd3 {[%clk 0:00:08]}  Rd8+ {[%clk 0:00:38]} 45. Kc3 {[%clk 0:00:06]}  Rb8 {[%clk 0:00:34]} 46. Rxc2 {[%clk 0:00:06]}  Rb4 {[%clk 0:00:35]} 47. Rf2 {[%clk 0:00:05]}  Rxa4 {[%clk 0:00:35]} 48. g4 {[%clk 0:00:06]}  Ra3+ {[%clk 0:00:34]} 49. Kd4 {[%clk 0:00:05]}  Rxh3 {[%clk 0:00:34]} 50. gxf5 {[%clk 0:00:05]}  Kb6 {[%clk 0:00:31]} 51. Ke5 {[%clk 0:00:05]}  Kc6 {[%clk 0:00:30]} 52. f6 {[%clk 0:00:05]}  Kd7 {[%clk 0:00:29]} 53. Ra2 {[%clk 0:00:04]}  Rh5+ {[%clk 0:00:23]} 54. f5 {[%clk 0:00:04]}  Rh1 {[%clk 0:00:23]} 55. Rxa5 {[%clk 0:00:04]}  Re1+ {[%clk 0:00:23]} 56. Kf4 {[%clk 0:00:05]}  Ke8 {[%clk 0:00:23]} 57. Kg5 {[%clk 0:00:04]}  Rg1+ {[%clk 0:00:21]} 58. Kf4 {[%clk 0:00:05]}  Kf7 {[%clk 0:00:21]} 59. Ra7+ {[%clk 0:00:05]}  Kxf6 {[%clk 0:00:21]} 60. Rxh7 {[%clk 0:00:05]}  Rf1+ {[%clk 0:00:21]} 61. Ke4 {[%clk 0:00:05]}  Re1+ {[%clk 0:00:22]} 62. Kd3 {[%clk 0:00:05]}  Kxf5 {[%clk 0:00:21]} 63. Rh2 {[%clk 0:00:06]}  Re5 {[%clk 0:00:21]} 64. Rf2+ {[%clk 0:00:05]}  Ke6 {[%clk 0:00:21]} 65. Re2 {[%clk 0:00:06]}  Rxe2 {[%clk 0:00:21]} 66. Kxe2 {[%clk 0:00:07]} 1/2-1/2


[Site "https://www.chess.com"]

[Event "Titled Tuesday Blitz January 11 2022"]
[White "Dastan, Muhammed Batuhan"]
[Black "Perez Gormaz, Matias"]
[WhiteFideId "6300014"]
[BlackFideId "3406342"]
[WhiteElo "2410"]
[BlackElo "2352"]
[Result "1/2-1/2"]
[Round "10"]
[TimeControl "180+1"]
[Date "2022.01.11"]
[WhiteClock "0:00:17"]
[BlackClock "0:00:10"]

1. d4 {[%clk 0:03:00]}  d5 {[%clk 0:02:59]} 2. c4 {[%clk 0:03:00]}  e6 {[%clk 0:03:00]} 3. Nc3 {[%clk 0:03:00]}  a6 {[%clk 0:03:00]} 4. cxd5 {[%clk 0:02:59]}  exd5 {[%clk 0:03:01]} 5. Bf4 {[%clk 0:02:59]}  Nf6 {[%clk 0:03:00]} 6. e3 {[%clk 0:03:00]}  c5 {[%clk 0:03:00]} 7. Nge2 {[%clk 0:02:59]}  Nc6 {[%clk 0:02:59]} 8. g3 {[%clk 0:02:57]}  Bg4 {[%clk 0:02:52]} 9. Bg2 {[%clk 0:02:43]}  cxd4 {[%clk 0:02:52]} 10. exd4 {[%clk 0:02:43]}  Bb4 {[%clk 0:02:51]} 11. O-O {[%clk 0:02:35]}  Bxc3 {[%clk 0:02:51]} 12. bxc3 {[%clk 0:02:35]}  O-O {[%clk 0:02:51]} 13. h3 {[%clk 0:02:03]}  Bh5 {[%clk 0:02:50]} 14. g4 {[%clk 0:02:04]}  Bg6 {[%clk 0:02:50]} 15. Bg5 {[%clk 0:01:53]}  Be4 {[%clk 0:02:35]} 16. Bxe4 {[%clk 0:01:29]}  dxe4 {[%clk 0:02:35]} 17. Ng3 {[%clk 0:01:29]}  Re8 {[%clk 0:02:30]} 18. Re1 {[%clk 0:01:25]}  h6 {[%clk 0:02:22]} 19. Bxf6 {[%clk 0:01:24]}  Qxf6 {[%clk 0:02:23]} 20. Nxe4 {[%clk 0:01:25]}  Qf4 {[%clk 0:02:22]} 21. Qd3 {[%clk 0:01:21]}  Rad8 {[%clk 0:02:20]} 22. Kg2 {[%clk 0:01:11]}  f5 {[%clk 0:01:57]} 23. gxf5 {[%clk 0:00:51]}  Qxf5 {[%clk 0:01:57]} 24. Qf3 {[%clk 0:00:52]}  Qg6+ {[%clk 0:01:53]} 25. Ng3 {[%clk 0:00:52]}  Rf8 {[%clk 0:01:52]} 26. Qe4 {[%clk 0:00:45]}  Qf6 {[%clk 0:01:52]} 27. Re2 {[%clk 0:00:45]}  Kh8 {[%clk 0:01:36]} 28. Rb1 {[%clk 0:00:44]}  Rd7 {[%clk 0:01:36]} 29. a4 {[%clk 0:00:39]}  Re7 {[%clk 0:01:36]} 30. Qd3 {[%clk 0:00:37]}  Ref7 {[%clk 0:01:33]} 31. Rbb2 {[%clk 0:00:35]}  Ne7 {[%clk 0:01:29]} 32. Rxb7 {[%clk 0:00:34]}  Nd5 {[%clk 0:01:19]} 33. Rxf7 {[%clk 0:00:33]}  Qxf7 {[%clk 0:01:19]} 34. Kg1 {[%clk 0:00:17]}  Nf4 {[%clk 0:01:20]} 35. Qe4 {[%clk 0:00:16]}  Nxe2+ {[%clk 0:00:51]} 36. Qxe2 {[%clk 0:00:17]}  Qb3 {[%clk 0:00:51]} 37. Qxa6 {[%clk 0:00:17]}  Qxc3 {[%clk 0:00:48]} 38. d5 {[%clk 0:00:17]}  Qd4 {[%clk 0:00:36]} 39. Qe2 {[%clk 0:00:16]}  Qxd5 {[%clk 0:00:36]} 40. Kh2 {[%clk 0:00:15]}  Qd4 {[%clk 0:00:35]} 41. Kg2 {[%clk 0:00:16]}  Qxa4 {[%clk 0:00:35]} 42. Qe5 {[%clk 0:00:15]}  Qa8+ {[%clk 0:00:34]} 43. Kg1 {[%clk 0:00:15]}  Qa7 {[%clk 0:00:34]} 44. Qe2 {[%clk 0:00:15]}  Qa1+ {[%clk 0:00:33]} 45. Kg2 {[%clk 0:00:15]}  Qf6 {[%clk 0:00:32]} 46. Kg1 {[%clk 0:00:15]}  Qf3 {[%clk 0:00:28]} 47. Qd2 {[%clk 0:00:16]}  Re8 {[%clk 0:00:23]} 48. Qc2 {[%clk 0:00:15]}  Re1+ {[%clk 0:00:23]} 49. Kh2 {[%clk 0:00:16]}  Re8 {[%clk 0:00:17]} 50. Kg1 {[%clk 0:00:14]}  Rd8 {[%clk 0:00:16]} 51. Kh2 {[%clk 0:00:13]}  Kg8 {[%clk 0:00:15]} 52. Qc4+ {[%clk 0:00:13]}  Kh8 {[%clk 0:00:16]} 53. Qc2 {[%clk 0:00:14]}  h5 {[%clk 0:00:14]} 54. Kg1 {[%clk 0:00:09]}  Qd1+ {[%clk 0:00:13]} 55. Qxd1 {[%clk 0:00:08]}  Rxd1+ {[%clk 0:00:14]} 56. Kg2 {[%clk 0:00:09]}  g6 {[%clk 0:00:14]} 57. Ne4 {[%clk 0:00:09]}  Kg7 {[%clk 0:00:14]} 58. Ng5 {[%clk 0:00:10]}  Re1 {[%clk 0:00:13]} 59. Nf3 {[%clk 0:00:10]}  Re8 {[%clk 0:00:14]} 60. Kg3 {[%clk 0:00:11]}  Kf6 {[%clk 0:00:14]} 61. Nh2 {[%clk 0:00:10]}  Ra8 {[%clk 0:00:13]} 62. Nf3 {[%clk 0:00:11]}  Ra3 {[%clk 0:00:13]} 63. Kf4 {[%clk 0:00:11]}  Ra4+ {[%clk 0:00:13]} 64. Kg3 {[%clk 0:00:12]}  g5 {[%clk 0:00:14]} 65. Nd2 {[%clk 0:00:11]}  Ra3+ {[%clk 0:00:14]} 66. Kg2 {[%clk 0:00:12]}  Kf5 {[%clk 0:00:14]} 67. Nc4 {[%clk 0:00:12]}  Rc3 {[%clk 0:00:13]} 68. Ne3+ {[%clk 0:00:13]}  Kg6 {[%clk 0:00:12]} 69. Nd5 {[%clk 0:00:13]}  Ra3 {[%clk 0:00:12]} 70. Ne3 {[%clk 0:00:14]}  Kf6 {[%clk 0:00:10]} 71. Nd5+ {[%clk 0:00:14]}  Ke5 {[%clk 0:00:10]} 72. Ne3 {[%clk 0:00:15]}  Rd3 {[%clk 0:00:08]} 73. Nc4+ {[%clk 0:00:15]}  Kf4 {[%clk 0:00:08]} 74. Nb6 {[%clk 0:00:14]}  Rd4 {[%clk 0:00:06]} 75. Nc8 {[%clk 0:00:14]}  Rd5 {[%clk 0:00:03]} 76. Ne7 {[%clk 0:00:14]}  Rc5 {[%clk 0:00:03]} 77. Ng8 {[%clk 0:00:10]}  g4 {[%clk 0:00:03]} 78. hxg4 {[%clk 0:00:10]}  Kxg4 {[%clk 0:00:04]} 79. Nf6+ {[%clk 0:00:10]}  Kf4 {[%clk 0:00:05]} 80. Nd7 {[%clk 0:00:09]}  Rb5 {[%clk 0:00:04]} 81. Nf6 {[%clk 0:00:09]}  h4 {[%clk 0:00:04]} 82. Kh3 {[%clk 0:00:09]}  Ra5 {[%clk 0:00:03]} 83. Nd7 {[%clk 0:00:09]}  Kf3 {[%clk 0:00:03]} 84. Kxh4 {[%clk 0:00:08]}  Kxf2 {[%clk 0:00:04]} 85. Nf6 {[%clk 0:00:07]}  Kf3 {[%clk 0:00:04]} 86. Nh5 {[%clk 0:00:08]}  Ke4 {[%clk 0:00:04]} 87. Kg4 {[%clk 0:00:08]}  Ra4 {[%clk 0:00:05]} 88. Ng3+ {[%clk 0:00:08]}  Ke5+ {[%clk 0:00:05]} 89. Kg5 {[%clk 0:00:08]}  Ra8 {[%clk 0:00:06]} 90. Kg4 {[%clk 0:00:09]}  Rg8+ {[%clk 0:00:06]} 91. Kf3 {[%clk 0:00:09]}  Rf8+ {[%clk 0:00:07]} 92. Kg4 {[%clk 0:00:10]}  Ra8 {[%clk 0:00:06]} 93. Kf3 {[%clk 0:00:10]}  Ra4 {[%clk 0:00:06]} 94. Kf2 {[%clk 0:00:09]}  Kf4 {[%clk 0:00:05]} 95. Ne2+ {[%clk 0:00:09]}  Ke4 {[%clk 0:00:05]} 96. Ng3+ {[%clk 0:00:10]}  Kf4 {[%clk 0:00:06]} 97. Ne2+ {[%clk 0:00:10]}  Kg4 {[%clk 0:00:07]} 98. Ke3 {[%clk 0:00:10]}  Ra8 {[%clk 0:00:07]} 99. Kd3 {[%clk 0:00:11]}  Rd8+ {[%clk 0:00:07]} 100. Nd4 {[%clk 0:00:12]}  Kf4 {[%clk 0:00:07]} 101. Kc4 {[%clk 0:00:13]}  Ke4 {[%clk 0:00:07]} 102. Nc6 {[%clk 0:00:13]}  Rc8 {[%clk 0:00:08]} 103. Kc5 {[%clk 0:00:14]}  Kf5 {[%clk 0:00:08]} 104. Kd6 {[%clk 0:00:14]}  Rh8 {[%clk 0:00:07]} 105. Ne7+ {[%clk 0:00:14]}  Kf6 {[%clk 0:00:07]} 106. Nd5+ {[%clk 0:00:15]}  Kf7 {[%clk 0:00:08]} 107. Ke5 {[%clk 0:00:15]}  Rh5+ {[%clk 0:00:09]} 108. Ke4 {[%clk 0:00:16]}  Ke6 {[%clk 0:00:09]} 109. Nf4+ {[%clk 0:00:16]}  Kd6 {[%clk 0:00:10]} 110. Nxh5 {[%clk 0:00:17]} 1/2-1/2


[Site "https://www.chess.com"]

[Event "Titled Tuesday Blitz January 11 2022"]
[White "Gaehwiler, Gabriel"]
[Black "Bayramov, Zaur"]
[WhiteFideId "1314530"]
[BlackFideId "13405080"]
[WhiteElo "2383"]
[BlackElo "2166"]
[Result "1-0"]
[Round "10"]
[TimeControl "180+1"]
[Date "2022.01.11"]
[WhiteClock "0:01:52"]
[BlackClock "0:02:18"]

1. d4 {[%clk 0:03:00]}  Nf6 {[%clk 0:03:00]} 2. c4 {[%clk 0:03:00]}  e6 {[%clk 0:03:00]} 3. g3 {[%clk 0:03:00]}  Bb4+ {[%clk 0:03:00]} 4. Bd2 {[%clk 0:03:00]}  Qe7 {[%clk 0:03:00]} 5. Bg2 {[%clk 0:02:59]}  d5 {[%clk 0:03:00]} 6. Nf3 {[%clk 0:02:56]}  O-O {[%clk 0:03:00]} 7. O-O {[%clk 0:02:56]}  dxc4 {[%clk 0:03:00]} 8. Ne5 {[%clk 0:02:45]}  Rd8 {[%clk 0:02:57]} 9. e3 {[%clk 0:02:37]}  Bxd2 {[%clk 0:02:56]} 10. Nxd2 {[%clk 0:02:34]}  c5 {[%clk 0:02:55]} 11. Ndxc4 {[%clk 0:02:31]}  cxd4 {[%clk 0:02:55]} 12. exd4 {[%clk 0:02:32]}  Nbd7 {[%clk 0:02:55]} 13. Qb3 {[%clk 0:02:26]}  Nb6 {[%clk 0:02:40]} 14. Nxb6 {[%clk 0:02:22]}  axb6 {[%clk 0:02:40]} 15. Qxb6 {[%clk 0:02:15]}  Ra6 {[%clk 0:02:35]} 16. Qc5 {[%clk 0:02:13]}  Rad6 {[%clk 0:02:34]} 17. Nc4 {[%clk 0:02:08]}  R6d7 {[%clk 0:02:33]} 18. Nb6 {[%clk 0:01:58]}  Qxc5 {[%clk 0:02:25]} 19. dxc5 {[%clk 0:01:58]}  Rc7 {[%clk 0:02:23]} 20. b4 {[%clk 0:01:56]}  Nd5 {[%clk 0:02:18]} 21. Rfd1 {[%clk 0:01:52]} 1-0


[Site "https://www.chess.com"]

[Event "Titled Tuesday Blitz January 11 2022"]
[White "Goncalves, Ivan Mesquita V"]
[Black "Demchenko, Anton"]
[WhiteFideId "2114224"]
[BlackFideId "4160258"]
[WhiteElo "2299"]
[BlackElo "2539"]
[Result "0-1"]
[Round "10"]
[TimeControl "180+1"]
[Date "2022.01.11"]
[WhiteClock "0:00:13"]
[BlackClock "0:00:23"]

1. d4 {[%clk 0:03:00]}  Nf6 {[%clk 0:03:00]} 2. c4 {[%clk 0:02:59]}  g6 {[%clk 0:02:59]} 3. Nf3 {[%clk 0:02:59]}  Bg7 {[%clk 0:02:59]} 4. e3 {[%clk 0:02:59]}  O-O {[%clk 0:03:00]} 5. b3 {[%clk 0:03:00]}  d6 {[%clk 0:03:00]} 6. Bb2 {[%clk 0:03:00]}  b6 {[%clk 0:03:00]} 7. Be2 {[%clk 0:03:00]}  Bb7 {[%clk 0:03:01]} 8. O-O {[%clk 0:03:00]}  Ne4 {[%clk 0:03:00]} 9. Qc2 {[%clk 0:03:00]}  Nd7 {[%clk 0:02:59]} 10. Nc3 {[%clk 0:02:59]}  Nxc3 {[%clk 0:02:55]} 11. Bxc3 {[%clk 0:03:00]}  e6 {[%clk 0:02:52]} 12. Rac1 {[%clk 0:02:53]}  f5 {[%clk 0:02:50]} 13. Nd2 {[%clk 0:02:44]}  e5 {[%clk 0:02:47]} 14. dxe5 {[%clk 0:02:43]}  dxe5 {[%clk 0:02:47]} 15. Bf3 {[%clk 0:02:32]}  e4 {[%clk 0:02:42]} 16. Be2 {[%clk 0:02:32]}  Qe7 {[%clk 0:02:41]} 17. Bxg7 {[%clk 0:02:31]}  Qxg7 {[%clk 0:02:40]} 18. b4 {[%clk 0:02:29]}  c5 {[%clk 0:02:39]} 19. a3 {[%clk 0:02:24]}  g5 {[%clk 0:02:26]} 20. Rcd1 {[%clk 0:02:19]}  Rae8 {[%clk 0:01:54]} 21. Nb3 {[%clk 0:02:17]}  f4 {[%clk 0:01:52]} 22. Bg4 {[%clk 0:01:51]}  Nf6 {[%clk 0:01:44]} 23. h3 {[%clk 0:01:39]}  h5 {[%clk 0:01:44]} 24. Be2 {[%clk 0:01:33]}  f3 {[%clk 0:01:43]} 25. gxf3 {[%clk 0:01:32]}  exf3 {[%clk 0:01:43]} 26. Bd3 {[%clk 0:01:29]}  g4 {[%clk 0:01:44]} 27. Kh1 {[%clk 0:01:22]}  Qg5 {[%clk 0:00:56]} 28. Rg1 {[%clk 0:01:16]}  Rxe3 {[%clk 0:00:34]} 29. Bh7+ {[%clk 0:00:56]}  Nxh7 {[%clk 0:00:29]} 30. fxe3 {[%clk 0:00:34]}  f2+ {[%clk 0:00:28]} 31. Kh2 {[%clk 0:00:15]}  fxg1=Q+ {[%clk 0:00:26]} 32. Rxg1 {[%clk 0:00:16]}  Qxe3 {[%clk 0:00:23]} 33. Qg6+ {[%clk 0:00:13]}  Kh8 {[%clk 0:00:23]} 0-1


[Site "https://www.chess.com"]